lending/lending_fUSD_20251216
["ID","MTS","AMOUNT","RATE_DAILY","PERIOD"]
[398577635,1765853442109,-4813.76,0.00016983,2]
[398577636,1765853442121,-1504.58,0.00016983,2]
[398577637,1765853442131,-500.0,0.00016983,2]
[398577638,1765853442140,-2374.63,0.00016983,2]
[398577639,1765853442149,-1882.91,0.00016983,2]
[398577640,1765853442158,-3188.83,0.00016983,2]
[398577641,1765853442168,-5234.09,0.00016983,2]
[398577642,1765853442177,-3500.97,0.00016983,2]
[398577643,1765853442186,-3734.24,0.00016983,2]
[398577644,1765853442195,-1889.09,0.00016983,2]
[398577645,1765853442204,-7353.05,0.00016983,2]
[398577646,1765853442215,-2445.9,0.00016983,2]
[398577647,1765853442224,-500.0,0.00016983,2]
[398577648,1765853442233,-852.5,0.00016983,2]
[398577649,1765853442242,-4516.7,0.00016983,2]
[398577650,1765853442251,-14888.61,0.00016983,2]
[398577651,1765853442260,-500.0,0.00016983,2]
[398577652,1765853442269,-1520.16,0.00016983,2]
[398577653,1765853442278,-151.0,0.00016983,2]
[398577654,1765853442287,-510.98207504,0.00016983,2]
[398577655,1765853442296,-500.0,0.00016983,2]
[398577656,1765853442305,-3195.09,0.00016983,2]
[398577657,1765853442314,-2465.21,0.00016983,2]
[398577658,1765853442323,-151.0,0.00016983,2]
[398577659,1765853442333,-151.0,0.00016983,2]
[398577660,1765853442342,-151.0,0.00016983,2]
[398577661,1765853442350,-1293.96,0.00016983,2]
[398577662,1765853442359,-500.0,0.00016983,2]
[398577663,1765853442368,-500.0,0.00016983,2]
[398577664,1765853442377,-639.73,0.00016983,2]
[398577665,1765853442386,-500.0,0.00016984,2]
[398577666,1765853442395,-500.0,0.00016984,2]
[398577667,1765853442403,-846.15,0.00016984,2]
[398577668,1765853442412,-549.33,0.00016984,2]
[398577669,1765853442421,-903.27,0.00016984,2]
[398577670,1765853442431,-1525.71,0.00016984,2]
[398577671,1765853442440,-1920.59,0.00016984,2]
[398577672,1765853442449,-1055.48,0.00016984,2]
[398577673,1765853442458,-559.96,0.00016984,2]
[398577674,1765853442468,-1903.93,0.00016984,2]
[398577675,1765853442479,-1464.42,0.00016984,2]
[398577676,1765853442489,-549.52,0.00016984,2]
[398577677,1765853442501,-890.64,0.00016984,2]
[398577678,1765853442512,-281.9,0.00016984,2]
[398577679,1765853442522,-151.0,0.00016984,2]
[398577680,1765853442532,-151.0,0.00016984,2]
[398577681,1765853442541,-500.0,0.00016984,2]
[398577682,1765853442551,-151.0,0.00016984,2]
[398577683,1765853442561,-500.0,0.00016984,2]
[398577684,1765853442570,-500.0,0.00016984,2]
[398577685,1765853442580,-998.38,0.00016984,2]
[398577686,1765853442589,-500.96,0.00016984,2]
[398577687,1765853442602,-1266.06,0.00016984,2]
[398577688,1765853442611,-500.0,0.00016984,2]
[398577689,1765853442620,-520.46,0.00016984,2]
[398577690,1765853442629,-897.26,0.00016984,2]
[398577691,1765853442639,-1407.82,0.00016984,2]
[398577692,1765853442649,-500.0,0.00016984,2]
[398577693,1765853442658,-2481.81,0.00016984,2]
[398577694,1765853442667,-972.23,0.00016984,2]
[398577695,1765853442676,-1062.94,0.00016984,2]
[398577696,1765853442685,-1462.61,0.00016984,2]
[398577697,1765853442694,-805.34,0.00016984,2]
[398577698,1765853442703,-500.0,0.00016984,2]
[398577699,1765853442712,-1591.5,0.00016984,2]
[398577700,1765853442721,-1137.8,0.00016984,2]
[398577701,1765853442730,-866.54,0.00016984,2]
[398577702,1765853442740,-1064.78,0.00016984,2]
[398577703,1765853442748,-1710.01,0.00016984,2]
[398577704,1765853442758,-1411.71,0.00016984,2]
[398577705,1765853442767,-1870.06,0.00016984,2]
[398577706,1765853442776,-500.0,0.00016984,2]
[398577707,1765853442785,-876.8,0.00016984,2]
[398577708,1765853442795,-500.0,0.00016984,2]
[398577709,1765853442804,-2507.35,0.00016984,2]
[398577710,1765853442813,-3733.0,0.00016984,2]
[398577711,1765853442823,-679.56,0.00016984,2]
[398577712,1765853442833,-500.0,0.00016984,2]
[398577713,1765853442842,-2873.32,0.00016984,2]
[398577714,1765853442851,-500.0,0.00016984,2]
[398577715,1765853442865,-500.0,0.00016984,2]
[398577716,1765853442874,-530.13,0.00016984,2]
[398577717,1765853442883,-500.0,0.00016984,2]
[398577718,1765853442892,-1582.59,0.00016984,2]
[398577719,1765853442901,-1382.86,0.00016984,2]
[398577720,1765853442910,-8135.66,0.00016984,2]
[398577721,1765853442919,-1201.33,0.00016984,2]
[398577722,1765853442929,-1769.33,0.00016984,2]
[398577723,1765853442938,-500.0,0.00016984,2]
[398577724,1765853442947,-500.0,0.00016984,2]
[398577725,1765853442955,-1254.63,0.00016984,2]
[398577726,1765853442965,-1469.44,0.00016984,2]
[398577727,1765853442975,-1805.81,0.00016984,2]
[398577728,1765853442984,-1069.39,0.00016984,2]
[398577729,1765853442993,-993.47,0.00016984,2]
[398577730,1765853443002,-4170.04,0.00016984,2]
[398577731,1765853443011,-1368.98,0.00016984,2]
[398577732,1765853443021,-4078.78,0.00016984,2]
[398577733,1765853443030,-500.0,0.00016984,2]
[398577734,1765853443041,-1536.44,0.00016984,2]
[398577735,1765853443052,-1495.12,0.00016984,2]
[398577736,1765853443061,-1780.85,0.00016984,2]
[398577737,1765853443070,-500.0,0.00016984,2]
[398577738,1765853443080,-1084.98,0.00016984,2]
[398577739,1765853443091,-500.0,0.00016984,2]
[398577740,1765853443101,-500.0,0.00016984,2]
[398577741,1765853443110,-500.0,0.00016984,2]
[398577742,1765853443120,-500.0,0.00016984,2]
[398577743,1765853443130,-500.0,0.00016984,2]
[398577744,1765853443139,-682.12,0.00016984,2]
[398577745,1765853443148,-2463.93,0.00016984,2]
[398577746,1765853443157,-3911.88,0.00016984,2]
[398577747,1765853443167,-1469.33,0.00016984,2]
[398577748,1765853443176,-802.69,0.00016984,2]
[398577749,1765853443186,-2589.65,0.00016984,2]
[398577750,1765853443195,-2013.77,0.00016984,2]
[398577751,1765853443204,-677.96,0.00016984,2]
[398577752,1765853443213,-1735.96,0.00016984,2]
[398577753,1765853443222,-605.58,0.00016984,2]
[398577754,1765853443232,-5553.14,0.00016984,2]
[398577755,1765853443241,-151.0,0.00016984,2]
[398577756,1765853443250,-151.0,0.00016984,2]
[398577757,1765853443259,-151.0,0.00016984,2]
[398577758,1765853443268,-839.81,0.00016984,2]
[398577759,1765853443277,-549.86,0.00016984,2]
[398577760,1765853443286,-1290.41,0.00016984,2]
[398577762,1765853443295,-794.69,0.00016984,2]
[398577763,1765853443305,-500.0,0.00016984,2]
[398577764,1765853443314,-200.240287,0.00016984,2]
[398577765,1765853443322,-500.0,0.00016984,2]
[398577766,1765853443332,-2715.16,0.00016984,2]
[398577767,1765853443343,-500.0,0.00016984,2]
[398577768,1765853443355,-7692.65,0.00016984,2]
[398577769,1765853443366,-500.0,0.00016984,2]
[398577770,1765853443376,-687.32,0.00016984,2]
[398577771,1765853443386,-568.79,0.00016984,2]
[398577772,1765853443395,-1736.15,0.00016984,2]
[398577773,1765853443404,-500.0,0.00016984,2]
[398577774,1765853443414,-1024.59,0.00016984,2]
[398577775,1765853443423,-7991.48,0.00016984,2]
[398577776,1765853443432,-1502.35,0.00016984,2]
[398577777,1765853443442,-1894.33,0.00016984,2]
[398577778,1765853443451,-534.8,0.00016984,2]
[398577779,1765853443461,-1257.07,0.00016984,2]
[398577780,1765853443470,-1186.14,0.00016984,2]
[398577781,1765853443479,-2510.01,0.00016984,2]
[398577782,1765853443489,-1936.9,0.00016984,2]
[398577783,1765853443499,-500.0,0.00016984,2]
[398577784,1765853443508,-633.72657688,0.00016984,2]
[398577785,1765853443517,-965.52,0.00016984,2]
[398577786,1765853443526,-6320.0,0.00016984,2]
[398577787,1765853443535,-2226.02,0.00016984,2]
[398577788,1765853443544,-500.0,0.00016984,2]
[398577789,1765853443553,-547.7,0.00016984,2]
[398577790,1765853443562,-856.65,0.00016984,2]
[398577791,1765853443570,-824.46,0.00016984,2]
[398577792,1765853443579,-540.0,0.00016984,2]
[398577793,1765853443589,-151.0,0.00016984,2]
[398577794,1765853443598,-151.0,0.00016984,2]
[398577795,1765853443607,-151.0,0.00016984,2]
[398577796,1765853443615,-151.0,0.00016984,2]
[398577797,1765853443624,-264.385813,0.00016984,2]
[398577798,1765853443633,-1538.17,0.00016984,2]
[398577799,1765853443642,-668.06,0.00016984,2]
[398577800,1765853443651,-1805.72,0.00016984,2]
[398577801,1765853443660,-3282.17,0.00016984,2]
[398577802,1765853443669,-1303.52,0.00016984,2]
[398577803,1765853443678,-518.61518236,0.00016984,2]
[398577804,1765853443687,-533.9,0.00016984,2]
[398577805,1765853443696,-500.0,0.00016984,2]
[398577806,1765853443704,-2251.14,0.00016984,2]
[398577808,1765853443713,-500.0,0.00016984,2]
[398577809,1765853443722,-500.0,0.00016984,2]
[398577810,1765853443731,-587.63,0.00016984,2]
[398577811,1765853443740,-1237.08,0.00016984,2]
[398577812,1765853443750,-500.0,0.00016984,2]
[398577813,1765853443760,-445.83949208,0.00016984,2]
[398577814,1765853443769,-9747.28,0.00016984,2]
[398577815,1765853443778,-2491.54,0.00016984,2]
[398577816,1765853443789,-500.0,0.00016984,2]
[398577817,1765853443798,-500.0,0.00016984,2]
[398577818,1765853443807,-1015.37,0.00016984,2]
[398577819,1765853443817,-675.01,0.00016984,2]
[398577820,1765853443829,-1560.38,0.00016984,2]
[398577821,1765853443839,-514.47,0.00016984,2]
[398577822,1765853443848,-151.0,0.00016984,2]
[398577823,1765853443857,-151.0,0.00016984,2]
[398577824,1765853443868,-151.0,0.00016984,2]
[398577825,1765853443878,-11951.23,0.00016984,2]
[398577826,1765853443886,-151.0,0.00016984,2]
[398577827,1765853443895,-151.0,0.00016984,2]
[398577828,1765853443905,-151.0,0.00016984,2]
[398577829,1765853443914,-987.31,0.00016984,2]
[398577830,1765853443923,-151.0,0.00016984,2]
[398577831,1765853443932,-151.0,0.00016984,2]
[398577832,1765853443941,-1407.59,0.00016984,2]
[398577833,1765853443950,-294.097541,0.00016984,2]
[398577834,1765853443959,-200.915688,0.00016984,2]
[398577835,1765853443968,-500.0,0.00016984,2]
[398577836,1765853443978,-500.0,0.00016984,2]
[398577837,1765853443987,-2333.74,0.00016984,2]
[398577838,1765853443996,-2075.53,0.00016984,2]
[398577839,1765853444006,-500.0,0.00016984,2]
[398577840,1765853444016,-666.71,0.00016984,2]
[398577841,1765853444026,-1612.29,0.00016984,2]
[398577842,1765853444035,-500.0,0.00016984,2]
[398577843,1765853444053,-608.71,0.00016984,2]
[398577844,1765853444062,-151.0,0.00016984,2]
[398577845,1765853444072,-151.0,0.00016984,2]
[398577846,1765853444081,-165.409268,0.00016984,2]
[398577847,1765853444091,-566.33,0.00016984,2]
[398577848,1765853444100,-1101.06,0.00016984,2]
[398577849,1765853444109,-421.21,0.00016984,2]
[398577850,1765853444118,-629.53,0.00016984,2]
[398577851,1765853444127,-500.0,0.00016984,2]
[398577852,1765853444137,-500.0,0.00016984,2]
[398577853,1765853444146,-500.0,0.00016984,2]
[398577854,1765853444154,-3530.05,0.00016984,2]
[398577855,1765853444164,-500.0,0.00016984,2]
[398577856,1765853444172,-772.07,0.00016984,2]
[398577857,1765853444182,-1861.45,0.00016984,2]
[398577858,1765853444192,-697.69,0.00016984,2]
[398577859,1765853444202,-500.0,0.00016984,2]
[398577860,1765853444212,-4118.27,0.00016984,2]
[398577861,1765853444222,-727.66,0.00016984,2]
[398577862,1765853444231,-626.64,0.00016984,2]
[398577863,1765853444241,-835.16,0.00016984,2]
[398577864,1765853444250,-1260.91,0.00016984,2]
[398577865,1765853444259,-500.0,0.00016984,2]
[398577866,1765853444269,-500.0,0.00016984,2]
[398577867,1765853444279,-2331.24,0.00016984,2]
[398577868,1765853444290,-500.0,0.00016984,2]
[398577869,1765853444298,-1067.83,0.00016984,2]
[398577870,1765853444307,-622.45,0.00016984,2]
[398577871,1765853444315,-1541.54,0.00016984,2]
[398577872,1765853444324,-500.0,0.00016984,2]
[398577873,1765853444333,-542.7,0.00016984,2]
[398577874,1765853444342,-2282.3,0.00016984,2]
[398577875,1765853444350,-500.0,0.00016984,2]
[398577876,1765853444359,-6521.98,0.00016984,2]
[398577877,1765853444367,-500.0,0.00016984,2]
[398577878,1765853444376,-1038.53,0.00016984,2]
[398577879,1765853444385,-151.0,0.00016984,2]
[398577880,1765853444393,-162.510151,0.00016984,2]
[398577881,1765853444402,-500.0,0.00016984,2]
[398577882,1765853444411,-1751.01,0.00016984,2]
[398577883,1765853444419,-500.0,0.00016985,2]
[398577884,1765853444429,-500.0,0.00016985,2]
[398577885,1765853444438,-500.0,0.00016985,2]
[398577886,1765853444446,-500.0,0.00016985,2]
[398577887,1765853444455,-500.0,0.00016985,2]
[398577888,1765853444464,-818.69,0.00016985,2]
[398577889,1765853444472,-500.0,0.00016985,2]
[398577890,1765853444481,-903.35,0.00016985,2]
[398577891,1765853444489,-500.0,0.00016985,2]
[398577892,1765853444498,-1658.14,0.00016985,2]
[398577893,1765853444506,-500.0,0.00016985,2]
[398577894,1765853444515,-454.48611257,0.00016985,2]
[398577895,1765853444523,-1177.67,0.00016985,2]
[398577896,1765853444531,-500.21513029,0.00016985,2]
[398577897,1765853444540,-500.0,0.00016985,2]
[398577898,1765853444549,-500.0,0.00016985,2]
[398577899,1765853444557,-500.0,0.00016985,2]
[398577900,1765853444566,-500.0,0.00016985,2]
[398577901,1765853444574,-670.51,0.00016985,2]
[398577902,1765853444583,-662.31,0.00016985,2]
[398577903,1765853444591,-500.0,0.00016985,2]
[398577904,1765853444600,-500.0,0.00016985,2]
[398577905,1765853444609,-500.0,0.00016985,2]
[398577906,1765853444618,-500.0,0.00016985,2]
[398577907,1765853444627,-502.30205004,0.00016985,2]
[398577908,1765853444635,-500.0,0.00016985,2]
[398577909,1765853444644,-500.0,0.00016985,2]
[398577910,1765853444652,-500.0,0.00016985,2]
[398577911,1765853444661,-500.0,0.00016985,2]
[398577912,1765853444669,-725.52,0.00016985,2]
[398577913,1765853444678,-500.0,0.00016985,2]
[398577914,1765853444687,-542.84,0.00016985,2]
[398577915,1765853444696,-657.64,0.00016985,2]
[398577916,1765853444705,-500.0,0.00016985,2]
[398577917,1765853444715,-500.0,0.00016985,2]
[398577918,1765853444724,-500.0,0.00016985,2]
[398577919,1765853444733,-737.87,0.00016985,2]
[398577920,1765853444743,-581.54,0.00016985,2]
[398577921,1765853444752,-500.0,0.00016985,2]
[398577922,1765853444761,-633.66,0.00016985,2]
[398577923,1765853444771,-500.0,0.00016985,2]
[398577924,1765853444780,-2946.33,0.00016985,2]
[398577925,1765853444789,-500.0,0.00016985,2]
[398577926,1765853444798,-500.0,0.00016985,2]
[398577927,1765853444807,-500.0,0.00016985,2]
[398577928,1765853444816,-2548.17,0.00016985,2]
[398577929,1765853444826,-760.07,0.00016985,2]
[398577930,1765853444836,-500.0,0.00016985,2]
[398577931,1765853444845,-500.0,0.00016985,2]
[398577932,1765853444854,-3006.84,0.00016985,2]
[398577933,1765853444864,-500.0,0.00016985,2]
[398577934,1765853444873,-1093.29,0.00016985,2]
[398577935,1765853444882,-500.0,0.00016985,2]
[398577936,1765853444891,-500.0,0.00016985,2]
[398577937,1765853444900,-2575.33,0.00016985,2]
[398577938,1765853444909,-500.0,0.00016985,2]
[398577939,1765853444919,-500.0,0.00016985,2]
[398577940,1765853444928,-500.0,0.00016985,2]
[398577941,1765853444937,-1176.71,0.00016985,2]
[398577942,1765853444946,-2728.62,0.00016985,2]
[398577943,1765853444955,-500.0,0.00016985,2]
[398577944,1765853444964,-1012.91,0.00016985,2]
[398577945,1765853444973,-500.0,0.00016985,2]
[398577946,1765853444981,-837.88,0.00016985,2]
[398577947,1765853444991,-500.0,0.00016985,2]
[398577948,1765853445000,-500.0,0.00016985,2]
[398577949,1765853445009,-500.0,0.00016985,2]
[398577950,1765853445018,-1170.49,0.00016985,2]
[398577951,1765853445027,-1402.55,0.00016985,2]
[398577952,1765853445036,-2939.4,0.00016985,2]
[398577953,1765853445055,-500.0,0.00016985,2]
[398577954,1765853445068,-500.0,0.00016985,2]
[398577955,1765853445077,-892.06,0.00016985,2]
[398577956,1765853445087,-1326.31,0.00016985,2]
[398577957,1765853445097,-500.0,0.00016985,2]
[398577958,1765853445107,-1184.89,0.00016985,2]
[398577959,1765853445116,-547.34,0.00016985,2]
[398577960,1765853445126,-500.0,0.00016985,2]
[398577961,1765853445136,-1354.89,0.00016985,2]
[398577962,1765853445145,-500.0,0.00016985,2]
[398577963,1765853445155,-500.0,0.00016985,2]
[398577964,1765853445164,-500.0,0.00016985,2]
[398577965,1765853445174,-500.0,0.00016985,2]
[398577966,1765853445184,-1512.78,0.00016985,2]
[398577967,1765853445194,-500.0,0.00016985,2]
[398577968,1765853445203,-634.2,0.00016985,2]
[398577969,1765853445213,-500.0,0.00016985,2]
[398577970,1765853445223,-3655.47,0.00016985,2]
[398577971,1765853445232,-500.0,0.00016985,2]
[398577972,1765853445241,-500.0,0.00016985,2]
[398577973,1765853445250,-2051.1,0.00016985,2]
[398577974,1765853445259,-500.0,0.00016985,2]
[398577975,1765853445269,-500.0,0.00016985,2]
[398577976,1765853445278,-500.0,0.00016985,2]
[398577977,1765853445287,-167.91426,0.00016985,2]
[398577978,1765853445296,-864.94,0.00016985,2]
[398577979,1765853445305,-500.0,0.00016985,2]
[398577980,1765853445314,-760.92,0.00016985,2]
[398577981,1765853445323,-500.0,0.00016985,2]
[398577982,1765853445332,-1512.51,0.00016985,2]
[398577983,1765853445342,-500.0,0.00016985,2]
[398577984,1765853445351,-162.807791,0.00016985,2]
[398577985,1765853445360,-1701.5,0.00016985,2]
[398577986,1765853445369,-1795.28,0.00016985,2]
[398577987,1765853445378,-1403.9,0.00016985,2]
[398577988,1765853445387,-500.0,0.00016985,2]
[398577989,1765853445396,-500.0,0.00016985,2]
[398577990,1765853445405,-500.0,0.00016985,2]
[398577991,1765853445414,-500.0,0.00016985,2]
[398577992,1765853445423,-1154.68,0.00016985,2]
[398577993,1765853445433,-500.0,0.00016985,2]
[398577994,1765853445442,-1854.73,0.00016985,2]
[398577995,1765853445451,-500.0,0.00016985,2]
[398577996,1765853445461,-165.071954,0.00016985,2]
[398577997,1765853445470,-4745.46,0.00016985,2]
[398577998,1765853445479,-1157.27,0.00016985,2]
[398577999,1765853445488,-500.0,0.00016985,2]
[398578000,1765853445497,-1020.34,0.00016985,2]
[398578001,1765853445506,-500.0,0.00016985,2]
[398578002,1765853445515,-1365.77,0.00016985,2]
[398578003,1765853445524,-500.0,0.00016985,2]
[398578004,1765853445533,-151.0,0.00016985,2]
[398578005,1765853445542,-177.832935,0.00016985,2]
[398578006,1765853445551,-500.0,0.00016985,2]
[398578007,1765853445561,-653.67,0.00016985,2]
[398578008,1765853445570,-500.0,0.00016985,2]
[398578009,1765853445579,-500.0,0.00016985,2]
[398578010,1765853445589,-500.0,0.00016985,2]
[398578011,1765853445598,-1428.367128,0.00016985,2]
[398578012,1765853445610,-500.0,0.00016985,2]
[398578013,1765853445619,-1313.68,0.00016985,2]
[398578014,1765853445628,-229.906252,0.00016985,2]
[398578015,1765853445637,-500.0,0.00016985,2]
[398578016,1765853445646,-586.19,0.00016985,2]
[398578017,1765853445655,-500.0,0.00016985,2]
[398578018,1765853445664,-1259.09,0.00016985,2]
[398578019,1765853445673,-3089.022755,0.00016985,2]
[398578020,1765853445683,-2638.42194,0.00016985,2]
[398578021,1765853445692,-282.38256307,0.00016985,2]
[398578022,1765853445701,-500.0,0.00016985,2]
[398578023,1765853445711,-581.08,0.00016985,2]
[398578024,1765853445721,-268.118914,0.00016985,2]
[398578025,1765853445731,-500.0,0.00016985,2]
[398578026,1765853445740,-3839.100839,0.00016985,2]
[398578027,1765853445749,-500.0,0.00016985,2]
[398578028,1765853445759,-828.89,0.00016985,2]
[398578029,1765853445768,-500.0,0.00016985,2]
[398578030,1765853445778,-500.0,0.00016985,2]
[398578031,1765853445787,-500.0,0.00016985,2]
[398578032,1765853445796,-1309.56,0.00016985,2]
[398578033,1765853445805,-500.0,0.00016985,2]
[398578034,1765853445814,-500.0,0.00016985,2]
[398578035,1765853445824,-1406.06,0.00016985,2]
[398578036,1765853445833,-500.0,0.00016985,2]
[398578037,1765853445842,-1194.9,0.00016985,2]
[398578038,1765853445851,-500.0,0.00016985,2]
[398578039,1765853445860,-500.0,0.00016985,2]
[398578040,1765853445869,-500.0,0.00016985,2]
[398578041,1765853445878,-1884.15,0.00016985,2]
[398578042,1765853445891,-500.0,0.00016985,2]
[398578043,1765853445900,-1351.41,0.00016985,2]
[398578044,1765853445909,-500.0,0.00016985,2]
[398578045,1765853445919,-500.0,0.00016985,2]
[398578046,1765853445929,-1026.4,0.00016985,2]
[398578047,1765853445938,-500.0,0.00016985,2]
[398578048,1765853445947,-500.0,0.00016985,2]
[398578049,1765853445956,-500.0,0.00016985,2]
[398578050,1765853445971,-500.0,0.00016985,2]
[398578051,1765853445980,-1171.77,0.00016985,2]
[398578052,1765853445996,-151.0,0.00016985,2]
[398578053,1765853446006,-2649.45,0.00016985,2]
[398578054,1765853446015,-151.0,0.00016985,2]
[398578055,1765853446024,-151.0,0.00016985,2]
[398578056,1765853446033,-151.0,0.00016985,2]
[398578057,1765853446047,-500.0,0.00016985,2]
[398578058,1765853446056,-1027.79,0.00016985,2]
[398578059,1765853446066,-646.35130901,0.00016985,2]
[398578060,1765853446075,-549.49179473,0.00016985,2]
[398578061,1765853446084,-1903.21,0.00016985,2]
[398578062,1765853446095,-500.0,0.00016985,2]
[398578063,1765853446105,-500.0,0.00016985,2]
[398578064,1765853446115,-500.0,0.00016985,2]
[398578065,1765853446124,-500.0,0.00016985,2]
[398578066,1765853446133,-500.0,0.00016985,2]
[398578067,1765853446142,-500.0,0.00016985,2]
[398578068,1765853446151,-500.0,0.00016985,2]
[398578069,1765853446160,-500.0,0.00016985,2]
[398578070,1765853446169,-696.59,0.00016985,2]
[398578071,1765853446179,-500.0,0.00016985,2]
[398578072,1765853446188,-500.0,0.00016985,2]
[398578073,1765853446197,-770.42,0.00016985,2]
[398578074,1765853446207,-565.98088941,0.00016985,2]
[398578075,1765853446216,-500.0,0.00016985,2]
[398578076,1765853446226,-1744.32,0.00016985,2]
[398578077,1765853446235,-157.72647792,0.00016985,2]
[398578078,1765853446244,-500.0,0.00016985,2]
[398578079,1765853446253,-500.0,0.00016985,2]
[398578080,1765853446262,-500.0,0.00016985,2]
[398578081,1765853446271,-1031.33,0.00016985,2]
[398578082,1765853446280,-500.0,0.00016985,2]
[398578083,1765853446290,-925.86,0.00016985,2]
[398578084,1765853446299,-266.41853979,0.00016985,2]
[398578085,1765853446308,-500.0,0.00016985,2]
[398578086,1765853446317,-500.0,0.00016985,2]
[398578087,1765853446327,-500.0,0.00016985,2]
[398578088,1765853446336,-500.0,0.00016985,2]
[398578089,1765853446345,-500.0,0.00016985,2]
[398578090,1765853446354,-500.0,0.00016985,2]
[398578091,1765853446364,-500.0,0.00016985,2]
[398578092,1765853446373,-500.0,0.00016985,2]
[398578093,1765853446382,-3294.61,0.00016985,2]
[398578094,1765853446391,-500.0,0.00016985,2]
[398578095,1765853446400,-810.1,0.00016985,2]
[398578096,1765853446410,-500.0,0.00016985,2]
[398578097,1765853446419,-500.0,0.00016985,2]
[398578098,1765853446428,-500.0,0.00016985,2]
[398578099,1765853446438,-500.0,0.00016985,2]
[398578100,1765853446447,-1448.63,0.00016985,2]
[398578101,1765853446456,-500.0,0.00016985,2]
[398578102,1765853446465,-1445.84,0.00016985,2]
[398578103,1765853446474,-500.0,0.00016985,2]
[398578104,1765853446483,-500.0,0.00016985,2]
[398578105,1765853446492,-1609.89,0.00016985,2]
[398578106,1765853446501,-500.0,0.00016985,2]
[398578107,1765853446510,-500.0,0.00016985,2]
[398578108,1765853446519,-500.0,0.00016985,2]
[398578109,1765853446529,-500.0,0.00016985,2]
[398578110,1765853446537,-1096.06,0.00016985,2]
[398578111,1765853446547,-3308.8,0.00016985,2]
[398578112,1765853446556,-3249.51,0.00016985,2]
[398578113,1765853446565,-500.0,0.00016985,2]
[398578114,1765853446574,-1590.67,0.00016985,2]
[398578115,1765853446584,-531.71958588,0.00016985,2]
[398578116,1765853446593,-12825.29,0.00016985,2]
[398578117,1765853446602,-500.0,0.00016985,2]
[398578118,1765853446611,-500.0,0.00016985,2]
[398578119,1765853446620,-1214.95,0.00016985,2]
[398578120,1765853446629,-500.0,0.00016985,2]
[398578121,1765853446638,-4386.41,0.00016985,2]
[398578122,1765853446647,-500.0,0.00016985,2]
[398578123,1765853446656,-500.0,0.00016985,2]
[398578124,1765853446665,-5199.87,0.00016985,2]
[398578126,1765853446674,-500.0,0.00016985,2]
[398578128,1765853446683,-5232.89,0.00016985,2]
[398578129,1765853446692,-500.0,0.00016985,2]
[398578130,1765853446701,-500.0,0.00016985,2]
[398578131,1765853446711,-500.0,0.00016985,2]
[398578132,1765853446720,-5558.85,0.00016985,2]
[398578133,1765853446729,-500.0,0.00016985,2]
[398578134,1765853446738,-809.83,0.00016985,2]
[398578135,1765853446748,-500.0,0.00016985,2]
[398578136,1765853446763,-1507.27,0.00016985,2]
[398578137,1765853446772,-500.0,0.00016985,2]
[398578138,1765853446782,-4327.37,0.00016985,2]